Workbook

Sheet Журнал операцій
A2: Дата | B2: Столбец1 | C2: Столбец7 | D2: Столбец8 | E2: № накл | F2: фр. | G2: тонаж | H2: Столбец6 | I2: Столбец2 | J2: Столбец3 | K2: Ціна без ПДВ | L2: Сума з ПДВ | M2: Столбец4 | N2: Столбец5
A3: 2014-01-08 | E3: 1 | F3: 5 | G3: 554 | K3: 111.67 | L3: =IF(журнал32[[#This Row],[тонаж]]="","",K3*G3*1.2) -> 74238.216
A4: 2014-01-08 | E4: 2 | F4: 5 | G4: 485 | K4: 111.67 | L4: =IF(журнал32[[#This Row],[тонаж]]="","",K4*G4*1.2) -> 64991.94
A5: 2014-01-10 | E5: 3 | F5: 5 | G5: 552 | K5: 111.67 | L5: =IF(журнал32[[#This Row],[тонаж]]="","",K5*G5*1.2) -> 73970.208
A6: 2014-01-10 | E6: 4 | F6: 5 | G6: 485 | K6: 111.67 | L6: =IF(журнал32[[#This Row],[тонаж]]="","",K6*G6*1.2) -> 64991.94
A7: 2014-01-11 | E7: 5 | F7: 20 | G7: 276 | K7: 96.67 | L7: =IF(журнал32[[#This Row],[тонаж]]="","",K7*G7*1.2) -> 32017.104
A8: 2014-01-17 | E8: 6 | F8: 5 | G8: 554 | K8: 111.67 | L8: =IF(журнал32[[#This Row],[тонаж]]="","",K8*G8*1.2) -> 74238.216
A9: 2014-01-17 | E9: 7 | F9: 5 | G9: 489 | K9: 111.67 | L9: =IF(журнал32[[#This Row],[тонаж]]="","",K9*G9*1.2) -> 65527.956
A10: 2014-01-24 | E10: 8 | F10: 5 | G10: 276 | K10: 111.67 | L10: =IF(журнал32[[#This Row],[тонаж]]="","",K10*G10*1.2) -> 36985.104
A11: 2014-01-24 | E11: 8 | F11: 20 | G11: 209 | K11: 96.67 | L11: =IF(журнал32[[#This Row],[тонаж]]="","",K11*G11*1.2) -> 24244.836
A12: 2014-01-24 | E12: 9 | F12: 5 | G12: 563 | K12: 111.67 | L12: =IF(журнал32[[#This Row],[тонаж]]="","",K12*G12*1.2) -> 75444.252
A13: 2014-01-28 | E13: 10 | F13: 5 | G13: 489 | K13: 111.67 | L13: =IF(журнал32[[#This Row],[тонаж]]="","",K13*G13*1.2) -> 65527.956
A14: 2014-01-28 | E14: 11 | F14: 5 | G14: 552 | K14: 111.67 | L14: =IF(журнал32[[#This Row],[тонаж]]="","",K14*G14*1.2) -> 73970.208
A15: 2014-01-31 | E15: 12 | F15: 5 | G15: 491.5 | K15: 111.67 | L15: =IF(журнал32[[#This Row],[тонаж]]="","",K15*G15*1.2) -> 65862.966
A16: 2014-02-02 | E16: 13 | F16: 5 | G16: 492.5 | K16: 111.67 | L16: =IF(журнал32[[#This Row],[тонаж]]="","",K16*G16*1.2) -> 65996.97
A17: 2014-02-02 | E17: 14 | F17: 5 | G17: 562.5 | K17: 111.67 | L17: =IF(журнал32[[#This Row],[тонаж]]="","",K17*G17*1.2) -> 75377.25
J18: =IF(журнал32[[#This Row],[тонаж]]="","",I18/G18) ->  | L18: =IF(журнал32[[#This Row],[тонаж]]="","",K18*G18*1.2) -> 
J19: =IF(журнал32[[#This Row],[тонаж]]="","",I19/G19) ->  | L19: =IF(журнал32[[#This Row],[тонаж]]="","",K19*G19*1.2) -> 
J20: =IF(журнал32[[#This Row],[тонаж]]="","",I20/G20) ->  | L20: =IF(журнал32[[#This Row],[тонаж]]="","",K20*G20*1.2) -> 
J21: =IF(журнал32[[#This Row],[тонаж]]="","",I21/G21) ->  | L21: =IF(журнал32[[#This Row],[тонаж]]="","",K21*G21*1.2) -> 
J22: =IF(журнал32[[#This Row],[тонаж]]="","",I22/G22) ->  | L22: =IF(журнал32[[#This Row],[тонаж]]="","",K22*G22*1.2) -> 
J23: =IF(журнал32[[#This Row],[тонаж]]="","",I23/G23) ->  | L23: =IF(журнал32[[#This Row],[тонаж]]="","",K23*G23*1.2) -> 
J24: =IF(журнал32[[#This Row],[тонаж]]="","",I24/G24) ->  | L24: =IF(журнал32[[#This Row],[тонаж]]="","",K24*G24*1.2) -> 
J25: =IF(журнал32[[#This Row],[тонаж]]="","",I25/G25) ->  | L25: =IF(журнал32[[#This Row],[тонаж]]="","",K25*G25*1.2) -> 
J26: =IF(журнал32[[#This Row],[тонаж]]="","",I26/G26) ->  | L26: =IF(журнал32[[#This Row],[тонаж]]="","",K26*G26*1.2) -> 
J27: =IF(журнал32[[#This Row],[тонаж]]="","",I27/G27) ->  | L27: =IF(журнал32[[#This Row],[тонаж]]="","",K27*G27*1.2) -> 
J28: =IF(журнал32[[#This Row],[тонаж]]="","",I28/G28) ->  | L28: =IF(журнал32[[#This Row],[тонаж]]="","",K28*G28*1.2) -> 
J29: =IF(журнал32[[#This Row],[тонаж]]="","",I29/G29) ->  | L29: =IF(журнал32[[#This Row],[тонаж]]="","",K29*G29*1.2) -> 
J30: =IF(журнал32[[#This Row],[тонаж]]="","",I30/G30) ->  | L30: =IF(журнал32[[#This Row],[тонаж]]="","",K30*G30*1.2) -> 
J31: =IF(журнал32[[#This Row],[тонаж]]="","",I31/G31) ->  | L31: =IF(журнал32[[#This Row],[тонаж]]="","",K31*G31*1.2) -> 
J32: =IF(журнал32[[#This Row],[тонаж]]="","",I32/G32) ->  | L32: =IF(журнал32[[#This Row],[тонаж]]="","",K32*G32*1.2) -> 
J33: =IF(журнал32[[#This Row],[тонаж]]="","",I33/G33) ->  | L33: =IF(журнал32[[#This Row],[тонаж]]="","",K33*G33*1.2) -> 
J34: =IF(журнал32[[#This Row],[тонаж]]="","",I34/G34) ->  | L34: =IF(журнал32[[#This Row],[тонаж]]="","",K34*G34*1.2) -> 
J35: =IF(журнал32[[#This Row],[тонаж]]="","",I35/G35) ->  | L35: =IF(журнал32[[#This Row],[тонаж]]="","",K35*G35*1.2) -> 
J36: =IF(журнал32[[#This Row],[тонаж]]="","",I36/G36) ->  | L36: =IF(журнал32[[#This Row],[тонаж]]="","",K36*G36*1.2) -> 
J37: =IF(журнал32[[#This Row],[тонаж]]="","",I37/G37) ->  | L37: =IF(журнал32[[#This Row],[тонаж]]="","",K37*G37*1.2) -> 
J38: =IF(журнал32[[#This Row],[тонаж]]="","",I38/G38) ->  | L38: =IF(журнал32[[#This Row],[тонаж]]="","",K38*G38*1.2) -> 
J39: =IF(журнал32[[#This Row],[тонаж]]="","",I39/G39) ->  | L39: =IF(журнал32[[#This Row],[тонаж]]="","",K39*G39*1.2) -> 
J40: =IF(журнал32[[#This Row],[тонаж]]="","",I40/G40) ->  | L40: =IF(журнал32[[#This Row],[тонаж]]="","",K40*G40*1.2) -> 
J41: =IF(журнал32[[#This Row],[тонаж]]="","",I41/G41) ->  | L41: =IF(журнал32[[#This Row],[тонаж]]="","",K41*G41*1.2) -> 
J42: =IF(журнал32[[#This Row],[тонаж]]="","",I42/G42) ->  | L42: =IF(журнал32[[#This Row],[тонаж]]="","",K42*G42*1.2) -> 
J43: =IF(журнал32[[#This Row],[тонаж]]="","",I43/G43) ->  | L43: =IF(журнал32[[#This Row],[тонаж]]="","",K43*G43*1.2) -> 
J44: =IF(журнал32[[#This Row],[тонаж]]="","",I44/G44) ->  | L44: =IF(журнал32[[#This Row],[тонаж]]="","",K44*G44*1.2) -> 
J45: =IF(журнал32[[#This Row],[тонаж]]="","",I45/G45) ->  | L45: =IF(журнал32[[#This Row],[тонаж]]="","",K45*G45*1.2) -> 
J46: =IF(журнал32[[#This Row],[тонаж]]="","",I46/G46) ->  | L46: =IF(журнал32[[#This Row],[тонаж]]="","",K46*G46*1.2) -> 
J47: =IF(журнал32[[#This Row],[тонаж]]="","",I47/G47) ->  | L47: =IF(журнал32[[#This Row],[тонаж]]="","",K47*G47*1.2) -> 
J48: =IF(журнал32[[#This Row],[тонаж]]="","",I48/G48) ->  | L48: =IF(журнал32[[#This Row],[тонаж]]="","",K48*G48*1.2) -> 
J49: =IF(журнал32[[#This Row],[тонаж]]="","",I49/G49) ->  | L49: =IF(журнал32[[#This Row],[тонаж]]="","",K49*G49*1.2) -> 
J50: =IF(журнал32[[#This Row],[тонаж]]="","",I50/G50) ->  | L50: =IF(журнал32[[#This Row],[тонаж]]="","",K50*G50*1.2) -> 
J51: =IF(журнал32[[#This Row],[тонаж]]="","",I51/G51) ->  | L51: =IF(журнал32[[#This Row],[тонаж]]="","",K51*G51*1.2) -> 
J52: =IF(журнал32[[#This Row],[тонаж]]="","",I52/G52) ->  | L52: =IF(журнал32[[#This Row],[тонаж]]="","",K52*G52*1.2) -> 
J53: =IF(журнал32[[#This Row],[тонаж]]="","",I53/G53) ->  | L53: =IF(журнал32[[#This Row],[тонаж]]="","",K53*G53*1.2) -> 
J54: =IF(журнал32[[#This Row],[тонаж]]="","",I54/G54) ->  | L54: =IF(журнал32[[#This Row],[тонаж]]="","",K54*G54*1.2) -> 
J55: =IF(журнал32[[#This Row],[тонаж]]="","",I55/G55) ->  | L55: =IF(журнал32[[#This Row],[тонаж]]="","",K55*G55*1.2) -> 
J56: =IF(журнал32[[#This Row],[тонаж]]="","",I56/G56) ->  | L56: =IF(журнал32[[#This Row],[тонаж]]="","",K56*G56*1.2) -> 
J57: =IF(журнал32[[#This Row],[тонаж]]="","",I57/G57) ->  | L57: =IF(журнал32[[#This Row],[тонаж]]="","",K57*G57*1.2) -> 
J58: =IF(журнал32[[#This Row],[тонаж]]="","",I58/G58) ->  | L58: =IF(журнал32[[#This Row],[тонаж]]="","",K58*G58*1.2) -> 
J59: =IF(журнал32[[#This Row],[тонаж]]="","",I59/G59) ->  | L59: =IF(журнал32[[#This Row],[тонаж]]="","",K59*G59*1.2) -> 
J60: =IF(журнал32[[#This Row],[тонаж]]="","",I60/G60) ->  | L60: =IF(журнал32[[#This Row],[тонаж]]="","",K60*G60*1.2) -> 
J61: =IF(журнал32[[#This Row],[тонаж]]="","",I61/G61) ->  | L61: =IF(журнал32[[#This Row],[тонаж]]="","",K61*G61*1.2) -> 
J62: =IF(журнал32[[#This Row],[тонаж]]="","",I62/G62) ->  | L62: =IF(журнал32[[#This Row],[тонаж]]="","",K62*G62*1.2) -> 
J63: =IF(журнал32[[#This Row],[тонаж]]="","",I63/G63) ->  | L63: =IF(журнал32[[#This Row],[тонаж]]="","",K63*G63*1.2) -> 
J64: =IF(журнал32[[#This Row],[тонаж]]="","",I64/G64) ->  | L64: =IF(журнал32[[#This Row],[тонаж]]="","",K64*G64*1.2) -> 
J65: =IF(журнал32[[#This Row],[тонаж]]="","",I65/G65) ->  | L65: =IF(журнал32[[#This Row],[тонаж]]="","",K65*G65*1.2) -> 
J66: =IF(журнал32[[#This Row],[тонаж]]="","",I66/G66) ->  | L66: =IF(журнал32[[#This Row],[тонаж]]="","",K66*G66*1.2) -> 
J67: =IF(журнал32[[#This Row],[тонаж]]="","",I67/G67) ->  | L67: =IF(журнал32[[#This Row],[тонаж]]="","",K67*G67*1.2) -> 
J68: =IF(журнал32[[#This Row],[тонаж]]="","",I68/G68) ->  | L68: =IF(журнал32[[#This Row],[тонаж]]="","",K68*G68*1.2) -> 
J69: =IF(журнал32[[#This Row],[тонаж]]="","",I69/G69) ->  | L69: =IF(журнал32[[#This Row],[тонаж]]="","",K69*G69*1.2) -> 
J70: =IF(журнал32[[#This Row],[тонаж]]="","",I70/G70) ->  | L70: =IF(журнал32[[#This Row],[тонаж]]="","",K70*G70*1.2) -> 
J71: =IF(журнал32[[#This Row],[тонаж]]="","",I71/G71) ->  | L71: =IF(журнал32[[#This Row],[тонаж]]="","",K71*G71*1.2) -> 
J72: =IF(журнал32[[#This Row],[тонаж]]="","",I72/G72) ->  | L72: =IF(журнал32[[#This Row],[тонаж]]="","",K72*G72*1.2) -> 
J73: =IF(журнал32[[#This Row],[тонаж]]="","",I73/G73) ->  | L73: =IF(журнал32[[#This Row],[тонаж]]="","",K73*G73*1.2) -> 
J74: =IF(журнал32[[#This Row],[тонаж]]="","",I74/G74) ->  | L74: =IF(журнал32[[#This Row],[тонаж]]="","",K74*G74*1.2) -> 
J75: =IF(журнал32[[#This Row],[тонаж]]="","",I75/G75) ->  | L75: =IF(журнал32[[#This Row],[тонаж]]="","",K75*G75*1.2) -> 
J76: =IF(журнал32[[#This Row],[тонаж]]="","",I76/G76) ->  | L76: =IF(журнал32[[#This Row],[тонаж]]="","",K76*G76*1.2) -> 
J77: =IF(журнал32[[#This Row],[тонаж]]="","",I77/G77) ->  | L77: =IF(журнал32[[#This Row],[тонаж]]="","",K77*G77*1.2) -> 
J78: =IF(журнал32[[#This Row],[тонаж]]="","",I78/G78) ->  | L78: =IF(журнал32[[#This Row],[тонаж]]="","",K78*G78*1.2) -> 
J79: =IF(журнал32[[#This Row],[тонаж]]="","",I79/G79) ->  | L79: =IF(журнал32[[#This Row],[тонаж]]="","",K79*G79*1.2) -> 
J80: =IF(журнал32[[#This Row],[тонаж]]="","",I80/G80) ->  | L80: =IF(журнал32[[#This Row],[тонаж]]="","",K80*G80*1.2) -> 
J81: =IF(журнал32[[#This Row],[тонаж]]="","",I81/G81) ->  | L81: =IF(журнал32[[#This Row],[тонаж]]="","",K81*G81*1.2) -> 
J82: =IF(журнал32[[#This Row],[тонаж]]="","",I82/G82) ->  | L82: =IF(журнал32[[#This Row],[тонаж]]="","",K82*G82*1.2) -> 
J83: =IF(журнал32[[#This Row],[тонаж]]="","",I83/G83) ->  | L83: =IF(журнал32[[#This Row],[тонаж]]="","",K83*G83*1.2) -> 
J84: =IF(журнал32[[#This Row],[тонаж]]="","",I84/G84) ->  | L84: =IF(журнал32[[#This Row],[тонаж]]="","",K84*G84*1.2) -> 
J85: =IF(журнал32[[#This Row],[тонаж]]="","",I85/G85) ->  | L85: =IF(журнал32[[#This Row],[тонаж]]="","",K85*G85*1.2) -> 
J86: =IF(журнал32[[#This Row],[тонаж]]="","",I86/G86) ->  | L86: =IF(журнал32[[#This Row],[тонаж]]="","",K86*G86*1.2) -> 
J87: =IF(журнал32[[#This Row],[тонаж]]="","",I87/G87) ->  | L87: =IF(журнал32[[#This Row],[тонаж]]="","",K87*G87*1.2) -> 
J88: =IF(журнал32[[#This Row],[тонаж]]="","",I88/G88) ->  | L88: =IF(журнал32[[#This Row],[тонаж]]="","",K88*G88*1.2) -> 
J89: =IF(журнал32[[#This Row],[тонаж]]="","",I89/G89) ->  | L89: =IF(журнал32[[#This Row],[тонаж]]="","",K89*G89*1.2) -> 
J90: =IF(журнал32[[#This Row],[тонаж]]="","",I90/G90) ->  | L90: =IF(журнал32[[#This Row],[тонаж]]="","",K90*G90*1.2) -> 
J91: =IF(журнал32[[#This Row],[тонаж]]="","",I91/G91) ->  | L91: =IF(журнал32[[#This Row],[тонаж]]="","",K91*G91*1.2) -> 
J92: =IF(журнал32[[#This Row],[тонаж]]="","",I92/G92) ->  | L92: =IF(журнал32[[#This Row],[тонаж]]="","",K92*G92*1.2) -> 
J93: =IF(журнал32[[#This Row],[тонаж]]="","",I93/G93) ->  | L93: =IF(журнал32[[#This Row],[тонаж]]="","",K93*G93*1.2) -> 
J94: =IF(журнал32[[#This Row],[тонаж]]="","",I94/G94) ->  | L94: =IF(журнал32[[#This Row],[тонаж]]="","",K94*G94*1.2) -> 
J95: =IF(журнал32[[#This Row],[тонаж]]="","",I95/G95) ->  | L95: =IF(журнал32[[#This Row],[тонаж]]="","",K95*G95*1.2) -> 
J96: =IF(журнал32[[#This Row],[тонаж]]="","",I96/G96) ->  | L96: =IF(журнал32[[#This Row],[тонаж]]="","",K96*G96*1.2) -> 
J97: =IF(журнал32[[#This Row],[тонаж]]="","",I97/G97) ->  | L97: =IF(журнал32[[#This Row],[тонаж]]="","",K97*G97*1.2) -> 
J98: =IF(журнал32[[#This Row],[тонаж]]="","",I98/G98) ->  | L98: =IF(журнал32[[#This Row],[тонаж]]="","",K98*G98*1.2) -> 
J99: =IF(журнал32[[#This Row],[тонаж]]="","",I99/G99) ->  | L99: =IF(журнал32[[#This Row],[тонаж]]="","",K99*G99*1.2) -> 
J100: =IF(журнал32[[#This Row],[тонаж]]="","",I100/G100) ->  | L100: =IF(журнал32[[#This Row],[тонаж]]="","",K100*G100*1.2) -> 
J101: =IF(журнал32[[#This Row],[тонаж]]="","",I101/G101) ->  | L101: =IF(журнал32[[#This Row],[тонаж]]="","",K101*G101*1.2) -> 
J102: =IF(журнал32[[#This Row],[тонаж]]="","",I102/G102) ->  | L102: =IF(журнал32[[#This Row],[тонаж]]="","",K102*G102*1.2) -> 
J103: =IF(журнал32[[#This Row],[тонаж]]="","",I103/G103) ->  | L103: =IF(журнал32[[#This Row],[тонаж]]="","",K103*G103*1.2) -> 
J104: =IF(журнал32[[#This Row],[тонаж]]="","",I104/G104) ->  | L104: =IF(журнал32[[#This Row],[тонаж]]="","",K104*G104*1.2) -> 
J105: =IF(журнал32[[#This Row],[тонаж]]="","",I105/G105) ->  | L105: =IF(журнал32[[#This Row],[тонаж]]="","",K105*G105*1.2) -> 
J106: =IF(журнал32[[#This Row],[тонаж]]="","",I106/G106) ->  | L106: =IF(журнал32[[#This Row],[тонаж]]="","",K106*G106*1.2) -> 
J107: =IF(журнал32[[#This Row],[тонаж]]="","",I107/G107) ->  | L107: =IF(журнал32[[#This Row],[тонаж]]="","",K107*G107*1.2) -> 
J108: =IF(журнал32[[#This Row],[тонаж]]="","",I108/G108) ->  | L108: =IF(журнал32[[#This Row],[тонаж]]="","",K108*G108*1.2) -> 
J109: =IF(журнал32[[#This Row],[тонаж]]="","",I109/G109) ->  | L109: =IF(журнал32[[#This Row],[тонаж]]="","",K109*G109*1.2) -> 
J110: =IF(журнал32[[#This Row],[тонаж]]="","",I110/G110) ->  | L110: =IF(журнал32[[#This Row],[тонаж]]="","",K110*G110*1.2) -> 
J111: =IF(журнал32[[#This Row],[тонаж]]="","",I111/G111) ->  | L111: =IF(журнал32[[#This Row],[тонаж]]="","",K111*G111*1.2) -> 
J112: =IF(журнал32[[#This Row],[тонаж]]="","",I112/G112) ->  | L112: =IF(журнал32[[#This Row],[тонаж]]="","",K112*G112*1.2) -> 
J113: =IF(журнал32[[#This Row],[тонаж]]="","",I113/G113) ->  | L113: =IF(журнал32[[#This Row],[тонаж]]="","",K113*G113*1.2) -> 
J114: =IF(журнал32[[#This Row],[тонаж]]="","",I114/G114) ->  | L114: =IF(журнал32[[#This Row],[тонаж]]="","",K114*G114*1.2) -> 
J115: =IF(журнал32[[#This Row],[тонаж]]="","",I115/G115) ->  | L115: =IF(журнал32[[#This Row],[тонаж]]="","",K115*G115*1.2) -> 
J116: =IF(журнал32[[#This Row],[тонаж]]="","",I116/G116) ->  | L116: =IF(журнал32[[#This Row],[тонаж]]="","",K116*G116*1.2) -> 
J117: =IF(журнал32[[#This Row],[тонаж]]="","",I117/G117) ->  | L117: =IF(журнал32[[#This Row],[тонаж]]="","",K117*G117*1.2) -> 
J118: =IF(журнал32[[#This Row],[тонаж]]="","",I118/G118) ->  | L118: =IF(журнал32[[#This Row],[тонаж]]="","",K118*G118*1.2) -> 
J119: =IF(журнал32[[#This Row],[тонаж]]="","",I119/G119) ->  | L119: =IF(журнал32[[#This Row],[тонаж]]="","",K119*G119*1.2) -> 
J120: =IF(журнал32[[#This Row],[тонаж]]="","",I120/G120) ->  | L120: =IF(журнал32[[#This Row],[тонаж]]="","",K120*G120*1.2) -> 
J121: =IF(журнал32[[#This Row],[тонаж]]="","",I121/G121) ->  | L121: =IF(журнал32[[#This Row],[тонаж]]="","",K121*G121*1.2) -> 
J122: =IF(журнал32[[#This Row],[тонаж]]="","",I122/G122) ->  | L122: =IF(журнал32[[#This Row],[тонаж]]="","",K122*G122*1.2) -> 
J123: =IF(журнал32[[#This Row],[тонаж]]="","",I123/G123) ->  | L123: =IF(журнал32[[#This Row],[тонаж]]="","",K123*G123*1.2) -> 
J124: =IF(журнал32[[#This Row],[тонаж]]="","",I124/G124) ->  | L124: =IF(журнал32[[#This Row],[тонаж]]="","",K124*G124*1.2) -> 
J125: =IF(журнал32[[#This Row],[тонаж]]="","",I125/G125) ->  | L125: =IF(журнал32[[#This Row],[тонаж]]="","",K125*G125*1.2) -> 
J126: =IF(журнал32[[#This Row],[тонаж]]="","",I126/G126) ->  | L126: =IF(журнал32[[#This Row],[тонаж]]="","",K126*G126*1.2) -> 
J127: =IF(журнал32[[#This Row],[тонаж]]="","",I127/G127) ->  | L127: =IF(журнал32[[#This Row],[тонаж]]="","",K127*G127*1.2) -> 
J128: =IF(журнал32[[#This Row],[тонаж]]="","",I128/G128) ->  | L128: =IF(журнал32[[#This Row],[тонаж]]="","",K128*G128*1.2) -> 
J129: =IF(журнал32[[#This Row],[тонаж]]="","",I129/G129) ->  | L129: =IF(журнал32[[#This Row],[тонаж]]="","",K129*G129*1.2) -> 
J130: =IF(журнал32[[#This Row],[тонаж]]="","",I130/G130) ->  | L130: =IF(журнал32[[#This Row],[тонаж]]="","",K130*G130*1.2) -> 
J131: =IF(журнал32[[#This Row],[тонаж]]="","",I131/G131) ->  | L131: =IF(журнал32[[#This Row],[тонаж]]="","",K131*G131*1.2) -> 
J132: =IF(журнал32[[#This Row],[тонаж]]="","",I132/G132) ->  | L132: =IF(журнал32[[#This Row],[тонаж]]="","",K132*G132*1.2) -> 
J133: =IF(журнал32[[#This Row],[тонаж]]="","",I133/G133) ->  | L133: =IF(журнал32[[#This Row],[тонаж]]="","",K133*G133*1.2) -> 
J134: =IF(журнал32[[#This Row],[тонаж]]="","",I134/G134) ->  | L134: =IF(журнал32[[#This Row],[тонаж]]="","",K134*G134*1.2) -> 
J135: =IF(журнал32[[#This Row],[тонаж]]="","",I135/G135) ->  | L135: =IF(журнал32[[#This Row],[тонаж]]="","",K135*G135*1.2) -> 
J136: =IF(журнал32[[#This Row],[тонаж]]="","",I136/G136) ->  | L136: =IF(журнал32[[#This Row],[тонаж]]="","",K136*G136*1.2) -> 
J137: =IF(журнал32[[#This Row],[тонаж]]="","",I137/G137) ->  | L137: =IF(журнал32[[#This Row],[тонаж]]="","",K137*G137*1.2) -> 
J138: =IF(журнал32[[#This Row],[тонаж]]="","",I138/G138) ->  | L138: =IF(журнал32[[#This Row],[тонаж]]="","",K138*G138*1.2) -> 
J139: =IF(журнал32[[#This Row],[тонаж]]="","",I139/G139) ->  | L139: =IF(журнал32[[#This Row],[тонаж]]="","",K139*G139*1.2) -> 
J140: =IF(журнал32[[#This Row],[тонаж]]="","",I140/G140) ->  | L140: =IF(журнал32[[#This Row],[тонаж]]="","",K140*G140*1.2) -> 
J141: =IF(журнал32[[#This Row],[тонаж]]="","",I141/G141) ->  | L141: =IF(журнал32[[#This Row],[тонаж]]="","",K141*G141*1.2) -> 
J142: =IF(журнал32[[#This Row],[тонаж]]="","",I142/G142) ->  | L142: =IF(журнал32[[#This Row],[тонаж]]="","",K142*G142*1.2) -> 
J143: =IF(журнал32[[#This Row],[тонаж]]="","",I143/G143) ->  | L143: =IF(журнал32[[#This Row],[тонаж]]="","",K143*G143*1.2) -> 
J144: =IF(журнал32[[#This Row],[тонаж]]="","",I144/G144) ->  | L144: =IF(журнал32[[#This Row],[тонаж]]="","",K144*G144*1.2) -> 
J145: =IF(журнал32[[#This Row],[тонаж]]="","",I145/G145) ->  | L145: =IF(журнал32[[#This Row],[тонаж]]="","",K145*G145*1.2) -> 
J146: =IF(журнал32[[#This Row],[тонаж]]="","",I146/G146) ->  | L146: =IF(журнал32[[#This Row],[тонаж]]="","",K146*G146*1.2) -> 
J147: =IF(журнал32[[#This Row],[тонаж]]="","",I147/G147) ->  | L147: =IF(журнал32[[#This Row],[тонаж]]="","",K147*G147*1.2) -> 
J148: =IF(журнал32[[#This Row],[тонаж]]="","",I148/G148) ->  | L148: =IF(журнал32[[#This Row],[тонаж]]="","",K148*G148*1.2) -> 
J149: =IF(журнал32[[#This Row],[тонаж]]="","",I149/G149) ->  | L149: =IF(журнал32[[#This Row],[тонаж]]="","",K149*G149*1.2) -> 
J150: =IF(журнал32[[#This Row],[тонаж]]="","",I150/G150) ->  | L150: =IF(журнал32[[#This Row],[тонаж]]="","",K150*G150*1.2) -> 
J151: =IF(журнал32[[#This Row],[тонаж]]="","",I151/G151) ->  | L151: =IF(журнал32[[#This Row],[тонаж]]="","",K151*G151*1.2) -> 
J152: =IF(журнал32[[#This Row],[тонаж]]="","",I152/G152) ->  | L152: =IF(журнал32[[#This Row],[тонаж]]="","",K152*G152*1.2) -> 
J153: =IF(журнал32[[#This Row],[тонаж]]="","",I153/G153) ->  | L153: =IF(журнал32[[#This Row],[тонаж]]="","",K153*G153*1.2) -> 
J154: =IF(журнал32[[#This Row],[тонаж]]="","",I154/G154) ->  | L154: =IF(журнал32[[#This Row],[тонаж]]="","",K154*G154*1.2) -> 
J155: =IF(журнал32[[#This Row],[тонаж]]="","",I155/G155) ->  | L155: =IF(журнал32[[#This Row],[тонаж]]="","",K155*G155*1.2) -> 
J156: =IF(журнал32[[#This Row],[тонаж]]="","",I156/G156) ->  | L156: =IF(журнал32[[#This Row],[тонаж]]="","",K156*G156*1.2) -> 
J157: =IF(журнал32[[#This Row],[тонаж]]="","",I157/G157) ->  | L157: =IF(журнал32[[#This Row],[тонаж]]="","",K157*G157*1.2) -> 
J158: =IF(журнал32[[#This Row],[тонаж]]="","",I158/G158) ->  | L158: =IF(журнал32[[#This Row],[тонаж]]="","",K158*G158*1.2) -> 
J159: =IF(журнал32[[#This Row],[тонаж]]="","",I159/G159) ->  | L159: =IF(журнал32[[#This Row],[тонаж]]="","",K159*G159*1.2) -> 
J160: =IF(журнал32[[#This Row],[тонаж]]="","",I160/G160) ->  | L160: =IF(журнал32[[#This Row],[тонаж]]="","",K160*G160*1.2) -> 
J161: =IF(журнал32[[#This Row],[тонаж]]="","",I161/G161) ->  | L161: =IF(журнал32[[#This Row],[тонаж]]="","",K161*G161*1.2) -> 
J162: =IF(журнал32[[#This Row],[тонаж]]="","",I162/G162) ->  | L162: =IF(журнал32[[#This Row],[тонаж]]="","",K162*G162*1.2) -> 
J163: =IF(журнал32[[#This Row],[тонаж]]="","",I163/G163) ->  | L163: =IF(журнал32[[#This Row],[тонаж]]="","",K163*G163*1.2) -> 
J164: =IF(журнал32[[#This Row],[тонаж]]="","",I164/G164) ->  | L164: =IF(журнал32[[#This Row],[тонаж]]="","",K164*G164*1.2) -> 
J165: =IF(журнал32[[#This Row],[тонаж]]="","",I165/G165) ->  | L165: =IF(журнал32[[#This Row],[тонаж]]="","",K165*G165*1.2) -> 
J166: =IF(журнал32[[#This Row],[тонаж]]="","",I166/G166) ->  | L166: =IF(журнал32[[#This Row],[тонаж]]="","",K166*G166*1.2) -> 
J167: =IF(журнал32[[#This Row],[тонаж]]="","",I167/G167) ->  | L167: =IF(журнал32[[#This Row],[тонаж]]="","",K167*G167*1.2) -> 
J168: =IF(журнал32[[#This Row],[тонаж]]="","",I168/G168) ->  | L168: =IF(журнал32[[#This Row],[тонаж]]="","",K168*G168*1.2) -> 
J169: =IF(журнал32[[#This Row],[тонаж]]="","",I169/G169) ->  | L169: =IF(журнал32[[#This Row],[тонаж]]="","",K169*G169*1.2) -> 
J170: =IF(журнал32[[#This Row],[тонаж]]="","",I170/G170) ->  | L170: =IF(журнал32[[#This Row],[тонаж]]="","",K170*G170*1.2) -> 
J171: =IF(журнал32[[#This Row],[тонаж]]="","",I171/G171) ->  | L171: =IF(журнал32[[#This Row],[тонаж]]="","",K171*G171*1.2) -> 
J172: =IF(журнал32[[#This Row],[тонаж]]="","",I172/G172) ->  | L172: =IF(журнал32[[#This Row],[тонаж]]="","",K172*G172*1.2) -> 
J173: =IF(журнал32[[#This Row],[тонаж]]="","",I173/G173) ->  | L173: =IF(журнал32[[#This Row],[тонаж]]="","",K173*G173*1.2) -> 
J174: =IF(журнал32[[#This Row],[тонаж]]="","",I174/G174) ->  | L174: =IF(журнал32[[#This Row],[тонаж]]="","",K174*G174*1.2) -> 
J175: =IF(журнал32[[#This Row],[тонаж]]="","",I175/G175) ->  | L175: =IF(журнал32[[#This Row],[тонаж]]="","",K175*G175*1.2) -> 
J176: =IF(журнал32[[#This Row],[тонаж]]="","",I176/G176) ->  | L176: =IF(журнал32[[#This Row],[тонаж]]="","",K176*G176*1.2) -> 
J177: =IF(журнал32[[#This Row],[тонаж]]="","",I177/G177) ->  | L177: =IF(журнал32[[#This Row],[тонаж]]="","",K177*G177*1.2) -> 
J178: =IF(журнал32[[#This Row],[тонаж]]="","",I178/G178) ->  | L178: =IF(журнал32[[#This Row],[тонаж]]="","",K178*G178*1.2) -> 
J179: =IF(журнал32[[#This Row],[тонаж]]="","",I179/G179) ->  | L179: =IF(журнал32[[#This Row],[тонаж]]="","",K179*G179*1.2) -> 
J180: =IF(журнал32[[#This Row],[тонаж]]="","",I180/G180) ->  | L180: =IF(журнал32[[#This Row],[тонаж]]="","",K180*G180*1.2) -> 
J181: =IF(журнал32[[#This Row],[тонаж]]="","",I181/G181) ->  | L181: =IF(журнал32[[#This Row],[тонаж]]="","",K181*G181*1.2) -> 
J182: =IF(журнал32[[#This Row],[тонаж]]="","",I182/G182) ->  | L182: =IF(журнал32[[#This Row],[тонаж]]="","",K182*G182*1.2) -> 
J183: =IF(журнал32[[#This Row],[тонаж]]="","",I183/G183) ->  | L183: =IF(журнал32[[#This Row],[тонаж]]="","",K183*G183*1.2) -> 
J184: =IF(журнал32[[#This Row],[тонаж]]="","",I184/G184) ->  | L184: =IF(журнал32[[#This Row],[тонаж]]="","",K184*G184*1.2) -> 
J185: =IF(журнал32[[#This Row],[тонаж]]="","",I185/G185) ->  | L185: =IF(журнал32[[#This Row],[тонаж]]="","",K185*G185*1.2) -> 
J186: =IF(журнал32[[#This Row],[тонаж]]="","",I186/G186) ->  | L186: =IF(журнал32[[#This Row],[тонаж]]="","",K186*G186*1.2) -> 
J187: =IF(журнал32[[#This Row],[тонаж]]="","",I187/G187) ->  | L187: =IF(журнал32[[#This Row],[тонаж]]="","",K187*G187*1.2) -> 
J188: =IF(журнал32[[#This Row],[тонаж]]="","",I188/G188) ->  | L188: =IF(журнал32[[#This Row],[тонаж]]="","",K188*G188*1.2) -> 
J189: =IF(журнал32[[#This Row],[тонаж]]="","",I189/G189) ->  | L189: =IF(журнал32[[#This Row],[тонаж]]="","",K189*G189*1.2) -> 
J190: =IF(журнал32[[#This Row],[тонаж]]="","",I190/G190) ->  | L190: =IF(журнал32[[#This Row],[тонаж]]="","",K190*G190*1.2) -> 
J191: =IF(журнал32[[#This Row],[тонаж]]="","",I191/G191) ->  | L191: =IF(журнал32[[#This Row],[тонаж]]="","",K191*G191*1.2) -> 
J192: =IF(журнал32[[#This Row],[тонаж]]="","",I192/G192) ->  | L192: =IF(журнал32[[#This Row],[тонаж]]="","",K192*G192*1.2) -> 
J193: =IF(журнал32[[#This Row],[тонаж]]="","",I193/G193) ->  | L193: =IF(журнал32[[#This Row],[тонаж]]="","",K193*G193*1.2) -> 
J194: =IF(журнал32[[#This Row],[тонаж]]="","",I194/G194) ->  | L194: =IF(журнал32[[#This Row],[тонаж]]="","",K194*G194*1.2) -> 
J195: =IF(журнал32[[#This Row],[тонаж]]="","",I195/G195) ->  | L195: =IF(журнал32[[#This Row],[тонаж]]="","",K195*G195*1.2) -> 
J196: =IF(журнал32[[#This Row],[тонаж]]="","",I196/G196) ->  | L196: =IF(журнал32[[#This Row],[тонаж]]="","",K196*G196*1.2) -> 
J197: =IF(журнал32[[#This Row],[тонаж]]="","",I197/G197) ->  | L197: =IF(журнал32[[#This Row],[тонаж]]="","",K197*G197*1.2) -> 
J198: =IF(журнал32[[#This Row],[тонаж]]="","",I198/G198) ->  | L198: =IF(журнал32[[#This Row],[тонаж]]="","",K198*G198*1.2) -> 
J199: =IF(журнал32[[#This Row],[тонаж]]="","",I199/G199) ->  | L199: =IF(журнал32[[#This Row],[тонаж]]="","",K199*G199*1.2) -> 
J200: =IF(журнал32[[#This Row],[тонаж]]="","",I200/G200) ->  | L200: =IF(журнал32[[#This Row],[тонаж]]="","",K200*G200*1.2) -> 
J201: =IF(журнал32[[#This Row],[тонаж]]="","",I201/G201) ->  | L201: =IF(журнал32[[#This Row],[тонаж]]="","",K201*G201*1.2) -> 
... 115 more rows

Sheet накладна
G10: 13 | H10: =MATCH(G10,INDEX(журнал32[],,5),0) -> 14
A13: ="Видаткова накладна № РН-00000"&TEXT($G$10,G10) -> Видаткова накладна № РН-0000013
A14: ="від "&TEXT(INDEX('Журнал операцій'!$A$3:$N$316,$H$10,1),"ДД.ММ.ГГГГ")&" року" -> від 02.02.2014 року
A16: № | B16: Товар | E16: Од. | F16: Кількість | G16: Ціна без ПДВ | H16: Сума без ПДВ
A17: 1 | B17: =IF(ВПР_3('Журнал операцій'!$E$2:$L$4932,1,$G$10,$A17,2)=0,"","Товар "&ВПР_3('Журнал операцій'!$E$2:$L$4932,1,$G$10,$A17,2)) -> Товар 5 | F17: =IF(ВПР_3('Журнал операцій'!$E$2:$L$4932,1,$G$10,$A17,3)=0,"",ВПР_3('Журнал операцій'!$E$2:$L$4932,1,$G$10,$A17,3)) -> 492.5 | G17: =IF(ВПР_3('Журнал операцій'!$E$2:$L$4932,1,$G$10,$A17,7)=0,"",ВПР_3('Журнал операцій'!$E$2:$L$4932,1,$G$10,$A17,7)) -> 111.67 | H17: =IFERROR(F17*G17,"") -> 54997.475
A18: 2 | B18: =IF(ВПР_3('Журнал операцій'!$E$2:$L$4932,1,$G$10,$A18,2)=0,"","Товар "&ВПР_3('Журнал операцій'!$E$2:$L$4932,1,$G$10,$A18,2)) ->  | F18: =IF(ВПР_3('Журнал операцій'!$E$2:$L$4932,1,$G$10,$A18,3)=0,"",ВПР_3('Журнал операцій'!$E$2:$L$4932,1,$G$10,$A18,3)) ->  | G18: =IF(ВПР_3('Журнал операцій'!$E$2:$L$4932,1,$G$10,$A18,7)=0,"",ВПР_3('Журнал операцій'!$E$2:$L$4932,1,$G$10,$A18,7)) ->  | H18: =IFERROR(F18*G18,"") -> 
A19: 3 | B19: =IF(ВПР_3('Журнал операцій'!$E$2:$L$4932,1,$G$10,$A19,2)=0,"","Товар "&ВПР_3('Журнал операцій'!$E$2:$L$4932,1,$G$10,$A19,2)) ->  | F19: =IF(ВПР_3('Журнал операцій'!$E$2:$L$4932,1,$G$10,$A19,3)=0,"",ВПР_3('Журнал операцій'!$E$2:$L$4932,1,$G$10,$A19,3)) ->  | G19: =IF(ВПР_3('Журнал операцій'!$E$2:$L$4932,1,$G$10,$A19,7)=0,"",ВПР_3('Журнал операцій'!$E$2:$L$4932,1,$G$10,$A19,7)) -> 
A20: 4 | B20: =IF(ВПР_3('Журнал операцій'!$E$2:$L$4932,1,$G$10,$A20,2)=0,"","Товар "&ВПР_3('Журнал операцій'!$E$2:$L$4932,1,$G$10,$A20,2)) ->  | F20: =IF(ВПР_3('Журнал операцій'!$E$2:$L$4932,1,$G$10,$A20,3)=0,"",ВПР_3('Журнал операцій'!$E$2:$L$4932,1,$G$10,$A20,3)) ->  | G20: =IF(ВПР_3('Журнал операцій'!$E$2:$L$4932,1,$G$10,$A20,7)=0,"",ВПР_3('Журнал операцій'!$E$2:$L$4932,1,$G$10,$A20,7)) -> 
A21: 5 | B21: =IF(ВПР_3('Журнал операцій'!$E$2:$L$4932,1,$G$10,$A21,2)=0,"","Товар "&ВПР_3('Журнал операцій'!$E$2:$L$4932,1,$G$10,$A21,2)) ->  | F21: =IF(ВПР_3('Журнал операцій'!$E$2:$L$4932,1,$G$10,$A21,3)=0,"",ВПР_3('Журнал операцій'!$E$2:$L$4932,1,$G$10,$A21,3)) ->  | G21: =IF(ВПР_3('Журнал операцій'!$E$2:$L$4932,1,$G$10,$A21,7)=0,"",ВПР_3('Журнал операцій'!$E$2:$L$4932,1,$G$10,$A21,7)) -> 
G22: Разом без ПДВ: | H22: =SUM(H17:H21) -> 54997.475
G23: ПДВ: | H23: =SUM(H17:H21)*0.2 -> 10999.495
G24: Всього з ПДВ: | H24: =SUM(H17:H21)*1.2 -> 65996.97
B26: Всього на суму:
B28: ПДВ: | C28: =H23 -> 10999.495
